[Event "Mistrovství Čech mládeže 2023 - HD12"]
[Site "Harrachov, Czech Republic"]
[Date "2023.10.27"]
[Round "8.17"]
[White "Vlček, Vítězslav"]
[Black "Hokr, Matyáš"]
[Result "0-1"]
[TimeControl "90m + 30s"]
[WhiteElo "1120"]
[BlackElo "1352"]

1. d4 {[%clk 01:30:50]} {[%emt 00:00:09]} Nf6 {[%clk 01:30:33]} {[%emt
00:00:27]} 2. c4 {[%clk 01:30:37]} {[%emt 00:00:44]} e6 {[%clk 01:30:46]}
{[%emt 00:00:16]} 3. Nc3 {[%clk 01:29:42]} {[%emt 00:01:25]} d5 {[%clk
01:30:47]} {[%emt 00:00:29]} 4. e3 {[%clk 01:29:08]} {[%emt 00:01:04]} Bb4
{[%clk 01:30:28]} {[%emt 00:00:47]} 5. Bd2 {[%clk 01:23:38]} {[%emt 00:06:02]}
c6 {[%clk 01:28:27]} {[%emt 00:02:31]} 6. Nf3 {[%clk 01:21:41]} {[%emt
00:02:27]} Nbd7 {[%clk 01:27:37]} {[%emt 00:01:19]} 7. Bd3 {[%clk 01:19:41]}
{[%emt 00:02:31]} O-O {[%clk 01:26:24]} {[%emt 00:01:43]} 8. O-O {[%clk
01:18:47]} {[%emt 00:01:24]} Bxc3 {[%clk 01:23:10]} {[%emt 00:03:44]} 9. Bxc3
{[%clk 01:16:20]} {[%emt 00:02:57]} Re8 {[%clk 01:20:42]} {[%emt 00:02:56]} 10.
Rc1 {[%clk 01:07:48]} {[%emt 00:09:04]} Rb8 {[%clk 01:15:32]} {[%emt 00:05:39]}
11. c5 {[%clk 00:58:20]} {[%emt 00:09:59]} b6 {[%clk 01:10:54]} {[%emt
00:05:07]} 12. cxb6 {[%clk 00:52:35]} {[%emt 00:06:17]} axb6 {[%clk 01:10:03]}
{[%emt 00:01:21]} 13. Bb4 {[%clk 00:50:50]} {[%emt 00:02:14]} c5 {[%clk
01:07:28]} {[%emt 00:03:06]} 14. dxc5 {[%clk 00:48:08]} {[%emt 00:03:12]} bxc5
{[%clk 01:07:33]} {[%emt 00:00:23]} 15. Bxc5 {[%clk 00:46:00]} {[%emt
00:02:39]} Nxc5 {[%clk 01:06:37]} {[%emt 00:01:26]} 16. Rxc5 {[%clk 00:46:10]}
{[%emt 00:00:20]} Rxb2 {[%clk 01:06:49]} {[%emt 00:00:18]} 17. Rc2 {[%clk
00:43:33]} {[%emt 00:03:07]} Qb6 {[%clk 01:03:18]} {[%emt 00:03:56]} 18. Rxb2
{[%clk 00:42:20]} {[%emt 00:01:48]} Qxb2 {[%clk 01:01:30]} {[%emt 00:01:54]} 19.
Qc2 {[%clk 00:42:02]} {[%emt 00:01:12]} Qxc2 {[%clk 00:53:25]} {[%emt
00:08:35]} 20. Bxc2 {[%clk 00:42:29]} {[%emt 00:00:03]} Ba6 {[%clk 00:53:40]}
{[%emt 00:00:14]} 21. Rb1 {[%clk 00:33:49]} {[%emt 00:09:09]} Bc4 {[%clk
00:49:28]} {[%emt 00:04:38]} 22. Bb3 {[%clk 00:31:35]} {[%emt 00:02:50]} Rb8
{[%clk 00:47:23]} {[%emt 00:02:31]} 23. Nd2 {[%clk 00:28:52]} {[%emt 00:03:17]}
Bxb3 {[%clk 00:46:12]} {[%emt 00:01:40]} 24. Nxb3 {[%clk 00:24:39]} {[%emt
00:04:44]} Kf8 {[%clk 00:45:39]} {[%emt 00:01:03]} 25. Kf1 {[%clk 00:21:41]}
{[%emt 00:03:28]} Ne4 {[%clk 00:43:20]} {[%emt 00:02:45]} 26. Rc1 {[%clk
00:18:32]} {[%emt 00:03:42]} Ra8 {[%clk 00:40:45]} {[%emt 00:03:05]} 27. Rc2
{[%clk 00:15:50]} {[%emt 00:03:13]} Ke7 {[%clk 00:40:23]} {[%emt 00:00:48]} 28.
f3 {[%clk 00:14:54]} {[%emt 00:01:30]} Nd6 {[%clk 00:39:57]} {[%emt 00:00:55]}
29. Ke2 {[%clk 00:12:44]} {[%emt 00:02:42]} Nb5 {[%clk 00:38:59]} {[%emt
00:01:22]} 30. Nd4 {[%clk 00:09:07]} {[%emt 00:04:12]} Rxa2 {[%clk 00:38:10]}
{[%emt 00:01:20]} 31. Rxa2 {[%clk 00:06:52]} {[%emt 00:02:45]} Nc3+ {[%clk
00:38:21]} {[%emt 00:00:18]} 32. Kd2 {[%clk 00:05:07]} {[%emt 00:02:15]} Nxa2
{[%clk 00:38:36]} {[%emt 00:00:15]} 33. f4 {[%clk 00:03:13]} {[%emt 00:02:25]}
Nb4 {[%clk 00:37:59]} {[%emt 00:01:07]} 34. g4 {[%clk 00:03:03]} {[%emt
00:00:40]} Na6 {[%clk 00:36:12]} {[%emt 00:02:13]} 35. g5 {[%clk 00:02:11]}
{[%emt 00:01:26]} Nc5 {[%clk 00:35:43]} {[%emt 00:00:59]} 36. Nc6+ {[%clk
00:02:08]} {[%emt 00:00:34]} Kd6 {[%clk 00:32:52]} {[%emt 00:03:20]} 37. Ne5
{[%clk 00:02:13]} {[%emt 00:00:25]} Ne4+ {[%clk 00:33:08]} {[%emt 00:00:15]} 38.
Kd3 {[%clk 00:02:03]} {[%emt 00:00:40]} Nxg5 {[%clk 00:33:16]} {[%emt
00:00:22]} 39. h4 {[%clk 00:02:00]} {[%emt 00:00:33]} f6 {[%clk 00:33:06]}
{[%emt 00:00:38]} 40. Ng4 {[%clk 00:01:59]} {[%emt 00:00:32]} Nf7 {[%clk
00:32:57]} {[%emt 00:00:39]} 41. h5 {[%clk 00:02:05]} {[%emt 00:00:24]} e5
{[%clk 00:32:18]} {[%emt 00:01:09]} 42. Nf2 {[%clk 00:01:33]} {[%emt 00:01:02]}
Ke6 {[%clk 00:31:08]} {[%emt 00:01:39]} 43. Nh3 {[%clk 00:01:40]} {[%emt
00:00:24]} Kf5 {[%clk 00:31:19]} {[%emt 00:00:19]} 44. Nf2 {[%clk 00:00:54]}
{[%emt 00:01:16]} exf4 {[%clk 00:31:08]} {[%emt 00:00:41]} 45. exf4 {[%clk
00:01:19]} {[%emt 00:00:06]} Nd8 {[%clk 00:30:34]} {[%emt 00:01:01]} 46. Kd4
{[%clk 00:01:20]} {[%emt 00:00:32]} Ne6+ {[%clk 00:30:57]} {[%emt 00:00:06]} 47.
Kxd5 {[%clk 00:00:59]} {[%emt 00:00:51]} Nxf4+ {[%clk 00:30:26]} {[%emt
00:01:01]} 0-1

[Event "Mistrovství Čech mládeže 2023 - HD12"]
[Site "Harrachov, Czech Republic"]
[Date "2023.10.27"]
[Round "8.18"]
[White "Vo, Daniel"]
[Black "Grosser, Filip"]
[Result "1-0"]
[TimeControl "90m + 30s"]
[WhiteElo "1341"]
[BlackElo "1050"]

1. e4 {[%clk 01:30:55]} {[%emt 00:00:04]} e5 {[%clk 01:30:57]} {[%emt
00:00:04]} 2. Nf3 {[%clk 01:31:14]} {[%emt 00:00:11]} Nc6 {[%clk 01:31:23]}
{[%emt 00:00:04]} 3. Bc4 {[%clk 01:31:28]} {[%emt 00:00:14]} Bc5 {[%clk
01:31:50]} {[%emt 00:00:04]} 4. c3 {[%clk 01:31:43]} {[%emt 00:00:14]} Nf6
{[%clk 01:32:16]} {[%emt 00:00:04]} 5. d4 {[%clk 01:31:55]} {[%emt 00:00:18]}
exd4 {[%clk 01:32:38]} {[%emt 00:00:08]} 6. cxd4 {[%clk 01:32:18]} {[%emt
00:00:07]} Bb4+ {[%clk 01:33:04]} {[%emt 00:00:04]} 7. Nc3 {[%clk 01:32:27]}
{[%emt 00:00:22]} O-O {[%clk 01:32:58]} {[%emt 00:00:35]} 8. Bg5 {[%clk
01:32:22]} {[%emt 00:00:34]} Qe7 {[%clk 01:32:22]} {[%emt 00:01:08]} 9. O-O
{[%clk 01:32:32]} {[%emt 00:00:19]} h6 {[%clk 01:30:18]} {[%emt 00:02:34]} 10.
Bxf6 {[%clk 01:32:41]} {[%emt 00:00:21]} Qxf6 {[%clk 01:30:42]} {[%emt
00:00:06]} 11. Nd5 {[%clk 01:32:45]} {[%emt 00:00:25]} Qd8 {[%clk 01:27:01]}
{[%emt 00:04:12]} 12. a3 {[%clk 01:31:06]} {[%emt 00:02:09]} Be7 {[%clk
01:26:51]} {[%emt 00:00:39]} 13. b4 {[%clk 01:26:44]} {[%emt 00:04:53]} d6
{[%clk 01:23:04]} {[%emt 00:04:17]} 14. Re1 {[%clk 01:25:46]} {[%emt 00:01:28]}
Bg4 {[%clk 01:23:05]} {[%emt 00:00:29]} 15. Be2 {[%clk 01:25:10]} {[%emt
00:01:06]} Re8 {[%clk 01:22:07]} {[%emt 00:01:28]} 16. Ne3 {[%clk 01:22:14]}
{[%emt 00:03:24]} Bh5 {[%clk 01:21:34]} {[%emt 00:01:05]} 17. b5 {[%clk
01:20:53]} {[%emt 00:01:51]} Nb8 {[%clk 01:21:36]} {[%emt 00:00:26]} 18. Nf5
{[%clk 01:18:01]} {[%emt 00:03:23]} Bf6 {[%clk 01:20:08]} {[%emt 00:02:00]} 19.
Qc2 {[%clk 01:15:10]} {[%emt 00:03:21]} Nd7 {[%clk 01:19:44]} {[%emt 00:00:53]}
20. Rad1 {[%clk 01:14:04]} {[%emt 00:01:34]} Kh7 {[%clk 01:12:48]} {[%emt
00:07:28]} 21. e5 {[%clk 01:11:40]} {[%emt 00:02:54]} Be7 {[%clk 01:07:38]}
{[%emt 00:05:40]} 22. Nxe7+ {[%clk 01:11:13]} {[%emt 00:00:56]} Kh8 {[%clk
01:06:17]} {[%emt 00:03:04]} 23. Nd5 {[%clk 01:12:26]} {[%emt 00:01:12]} Bg6
{[%clk 01:06:14]} {[%emt 00:00:34]} 24. Qxc7 {[%clk 01:12:17]} {[%emt
00:00:40]} 1-0

[Event "Mistrovství Čech mládeže 2023 - HD12"]
[Site "Harrachov, Czech Republic"]
[Date "2023.10.27"]
[Round "8.21"]
[White "Koutecká, Magdalena"]
[Black "Kůsová, Nikola"]
[Result "0-1"]
[TimeControl "90m + 30s"]
[WhiteElo "1123"]
[BlackElo "1324"]

1. e4 {[%clk 01:30:58]} c5 {[%clk 01:30:50]} {[%emt 00:00:10]} 2. d4 {[%clk
01:31:20]} {[%emt 00:00:08]} cxd4 {[%clk 01:31:12]} {[%emt 00:00:09]} 3. c3
{[%clk 01:31:36]} {[%emt 00:00:14]} Nf6 {[%clk 01:31:30]} {[%emt 00:00:12]} 4.
e5 {[%clk 01:31:05]} {[%emt 00:01:00]} Nd5 {[%clk 01:31:46]} {[%emt 00:00:15]}
5. cxd4 {[%clk 01:31:13]} {[%emt 00:00:22]} d6 {[%clk 01:31:45]} {[%emt
00:00:31]} 6. Nf3 {[%clk 01:30:25]} {[%emt 00:01:18]} Nc6 {[%clk 01:29:15]}
{[%emt 00:03:01]} 7. Bc4 {[%clk 01:28:17]} {[%emt 00:02:36]} Nb6 {[%clk
01:27:39]} {[%emt 00:02:08]} 8. Bb3 {[%clk 01:27:10]} {[%emt 00:01:36]} dxe5
{[%clk 01:26:33]} {[%emt 00:01:36]} 9. dxe5 {[%clk 01:26:27]} {[%emt 00:01:13]}
Qxd1+ {[%clk 01:25:28]} {[%emt 00:01:37]} 10. Bxd1 {[%clk 01:26:26]} {[%emt
00:00:30]} Bf5 {[%clk 01:21:00]} {[%emt 00:04:57]} 11. Bf4 {[%clk 01:23:40]}
{[%emt 00:03:16]} e6 {[%clk 01:18:45]} {[%emt 00:02:46]} 12. O-O {[%clk
01:15:35]} {[%emt 00:08:34]} Bc5 {[%clk 01:15:17]} {[%emt 00:03:59]} 13. Nc3
{[%clk 01:10:47]} {[%emt 00:05:17]} O-O {[%clk 01:13:36]} {[%emt 00:02:11]} 14.
Bb3 {[%clk 01:05:20]} {[%emt 00:05:57]} Rfd8 {[%clk 01:08:13]} {[%emt
00:05:52]} 15. Rac1 {[%clk 01:01:04]} {[%emt 00:04:46]} Be7 {[%clk 01:01:59]}
{[%emt 00:06:46]} 16. Rfd1 {[%clk 00:54:00]} {[%emt 00:07:33]} a6 {[%clk
00:57:39]} {[%emt 00:04:52]} 17. Na4 {[%clk 00:47:44]} {[%emt 00:06:44]} Nd7
{[%clk 00:51:28]} {[%emt 00:06:42]} 18. a3 {[%clk 00:34:00]} {[%emt 00:14:14]}
Na5 {[%clk 00:46:58]} {[%emt 00:05:00]} 19. Ba2 {[%clk 00:32:09]} {[%emt
00:02:14]} b5 {[%clk 00:45:24]} {[%emt 00:02:11]} 20. Nc3 {[%clk 00:29:04]}
{[%emt 00:03:30]} Nb6 {[%clk 00:44:33]} {[%emt 00:01:27]} 21. Be3 {[%clk
00:23:54]} {[%emt 00:05:38]} Nbc4 {[%clk 00:44:09]} {[%emt 00:00:54]} 22. Bxc4
{[%clk 00:17:26]} {[%emt 00:06:58]} Nxc4 {[%clk 00:44:28]} {[%emt 00:00:12]} 23.
Rxd8+ {[%clk 00:14:58]} {[%emt 00:02:58]} Rxd8 {[%clk 00:44:34]} {[%emt
00:00:23]} 24. Bd4 {[%clk 00:14:56]} {[%emt 00:00:29]} Nxb2 {[%clk 00:42:39]}
{[%emt 00:02:28]} 25. Nxb5 {[%clk 00:12:47]} {[%emt 00:02:38]} Nd3 {[%clk
00:42:23]} {[%emt 00:00:48]} 26. Rc7 {[%clk 00:13:01]} {[%emt 00:00:13]} Kf8
{[%clk 00:39:19]} {[%emt 00:03:36]} 27. Nc3 {[%clk 00:10:04]} {[%emt 00:03:24]}
Bxa3 {[%clk 00:37:51]} {[%emt 00:02:02]} 28. Ra7 {[%clk 00:09:21]} {[%emt
00:01:10]} Nb4 {[%clk 00:37:29]} {[%emt 00:00:55]} 29. Bc5+ {[%clk 00:09:25]}
{[%emt 00:00:26]} Kg8 {[%clk 00:37:45]} {[%emt 00:00:14]} 30. Bd6 {[%clk
00:07:30]} {[%emt 00:02:23]} Rc8 {[%clk 00:36:45]} {[%emt 00:01:31]} 31. h3
{[%clk 00:06:46]} {[%emt 00:01:13]} h6 {[%clk 00:34:21]} {[%emt 00:02:56]} 32.
Ne2 {[%clk 00:06:02]} {[%emt 00:01:06]} Bd3 {[%clk 00:29:38]} {[%emt 00:05:21]}
33. Nf4 {[%clk 00:05:51]} {[%emt 00:00:38]} Bb5 {[%clk 00:29:34]} {[%emt
00:00:37]} 34. Bxb4 {[%clk 00:04:10]} {[%emt 00:02:10]} Bxb4 {[%clk 00:29:47]}
{[%emt 00:00:18]} 35. Rb7 {[%clk 00:04:33]} {[%emt 00:00:06]} Bc5 {[%clk
00:28:39]} {[%emt 00:01:38]} 36. Nh5 {[%clk 00:04:04]} {[%emt 00:00:59]} Bc6
{[%clk 00:26:52]} {[%emt 00:02:17]} 37. Rb3 {[%clk 00:04:06]} {[%emt 00:00:24]}
Bxf3 {[%clk 00:27:12]} {[%emt 00:00:15]} 38. Rxf3 {[%clk 00:04:29]} {[%emt
00:00:06]} Ra8 {[%clk 00:27:02]} {[%emt 00:00:39]} 39. Rc3 {[%clk 00:04:36]}
{[%emt 00:00:25]} Bd4 {[%clk 00:26:56]} {[%emt 00:00:36]} 40. Ra3 {[%clk
00:04:40]} {[%emt 00:00:23]} Bxe5 {[%clk 00:27:07]} {[%emt 00:00:22]} 41. Ra5
{[%clk 00:04:56]} {[%emt 00:00:14]} Bc3 {[%clk 00:25:14]} {[%emt 00:02:23]} 42.
Ra3 {[%clk 00:05:16]} {[%emt 00:00:05]} Bb4 {[%clk 00:25:21]} {[%emt 00:00:27]}
43. Ra4 {[%clk 00:05:43]} {[%emt 00:00:03]} a5 {[%clk 00:25:18]} {[%emt
00:00:34]} 44. Kf1 {[%clk 00:06:11]} {[%emt 00:00:02]} Rc8 {[%clk 00:24:21]}
{[%emt 00:01:27]} 45. Ke2 {[%clk 00:06:26]} {[%emt 00:00:14]} Rc2+ {[%clk
00:24:31]} {[%emt 00:00:20]} 46. Kf3 {[%clk 00:06:47]} {[%emt 00:00:05]} Rc3+
{[%clk 00:24:53]} {[%emt 00:00:12]} 47. Kg4 {[%clk 00:07:08]} {[%emt 00:00:08]}
f5+ {[%clk 00:24:53]} {[%emt 00:00:31]} 48. Kf4 {[%clk 00:06:18]} {[%emt
00:01:20]} Bd6# {[%clk 00:25:15]} {[%emt 00:00:09]} 0-1

[Event "Mistrovství Čech mládeže 2023 - HD12"]
[Site "Harrachov, Czech Republic"]
[Date "2023.10.28"]
[Round "9.1"]
[White "Honcharov, Makar"]
[Black "Artamonov, Mikhail"]
[Result "1/2-1/2"]
[TimeControl "90m + 30s"]
[WhiteElo "1872"]
[BlackElo "1458"]

1. e4 {[%clk 01:30:58]} {[%emt 00:00:01]} c5 {[%clk 01:30:56]} {[%emt
00:00:04]} 2. Nf3 {[%clk 01:31:23]} {[%emt 00:00:05]} Nc6 {[%clk 01:31:23]}
{[%emt 00:00:04]} 3. d4 {[%clk 01:31:47]} {[%emt 00:00:05]} cxd4 {[%clk
01:31:21]} {[%emt 00:00:33]} 4. Nxd4 {[%clk 01:32:11]} {[%emt 00:00:05]} Nf6
{[%clk 01:31:45]} {[%emt 00:00:07]} 5. Nc3 {[%clk 01:32:37]} {[%emt 00:00:04]}
g6 {[%clk 01:32:05]} {[%emt 00:00:09]} 6. Be3 {[%clk 01:33:03]} {[%emt
00:00:04]} Bg7 {[%clk 01:32:30]} {[%emt 00:00:05]} 7. Bc4 {[%clk 01:33:30]}
{[%emt 00:00:04]} Qa5 {[%clk 01:32:55]} {[%emt 00:00:05]} 8. O-O {[%clk
01:33:48]} {[%emt 00:00:11]} O-O {[%clk 01:32:50]} {[%emt 00:00:34]} 9. Bb3
{[%clk 01:33:53]} {[%emt 00:00:26]} d6 {[%clk 01:32:57]} {[%emt 00:00:24]} 10.
h3 {[%clk 01:34:18]} {[%emt 00:00:05]} Bd7 {[%clk 01:27:48]} {[%emt 00:05:39]}
11. f4 {[%clk 01:32:17]} {[%emt 00:02:30]} Nxd4 {[%clk 01:27:48]} {[%emt
00:00:30]} 12. Bxd4 {[%clk 01:32:39]} {[%emt 00:00:08]} Bc6 {[%clk 01:21:37]}
{[%emt 00:06:42]} 13. Qe1 {[%clk 01:32:13]} {[%emt 00:00:54]} Qb4 {[%clk
01:19:34]} {[%emt 00:02:34]} 14. Bxf6 {[%clk 01:09:42]} {[%emt 00:23:02]} Bxf6
{[%clk 01:18:37]} {[%emt 00:01:26]} 15. Nd5 {[%clk 01:06:48]} {[%emt 00:03:25]}
Qc5+ {[%clk 01:18:18]} {[%emt 00:00:49]} 16. Kh1 {[%clk 01:06:56]} {[%emt
00:00:21]} Bxb2 {[%clk 01:17:19]} {[%emt 00:01:29]} 17. Nxe7+ {[%clk 01:05:42]}
{[%emt 00:01:44]} Kh8 {[%clk 01:17:29]} {[%emt 00:00:20]} 18. Nxc6 {[%clk
01:06:00]} {[%emt 00:00:13]} bxc6 {[%clk 01:14:41]} {[%emt 00:03:18]} 19. Rd1
{[%clk 01:06:14]} {[%emt 00:00:15]} Rae8 {[%clk 01:03:17]} {[%emt 00:11:55]} 20.
Qe2 {[%clk 01:05:01]} {[%emt 00:01:42]} f5 {[%clk 01:02:06]} {[%emt 00:01:41]}
21. e5 {[%clk 00:35:12]} {[%emt 00:30:13]} dxe5 {[%clk 01:01:43]} {[%emt
00:01:00]} 22. c3 {[%clk 00:35:26]} {[%emt 00:00:15]} Bxc3 {[%clk 00:59:10]}
{[%emt 00:03:03]} 23. Rc1 {[%clk 00:35:33]} {[%emt 00:00:23]} Qb4 {[%clk
00:59:34]} {[%emt 00:00:07]} 24. Qd3 {[%clk 00:31:49]} {[%emt 00:04:13]} Bd4
{[%clk 00:59:09]} {[%emt 00:00:55]} 25. Rc4 {[%clk 00:31:00]} {[%emt 00:01:18]}
Qb6 {[%clk 00:59:11]} {[%emt 00:00:29]} 1/2-1/2

[Event "Mistrovství Čech mládeže 2023 - HD12"]
[Site "Harrachov, Czech Republic"]
[Date "2023.10.28"]
[Round "9.2"]
[White "Málek, Daniel"]
[Black "Havlík, David"]
[Result "0-1"]
[TimeControl "90m + 30s"]
[WhiteElo "1404"]
[BlackElo "1331"]

1. e4 {[%clk 01:30:39]} {[%emt 00:00:20]} c5 {[%clk 01:30:51]} {[%emt
00:00:09]} 2. Nf3 {[%clk 01:31:03]} {[%emt 00:00:06]} e6 {[%clk 01:31:14]}
{[%emt 00:00:07]} 3. c4 {[%clk 01:30:12]} {[%emt 00:01:22]} Nc6 {[%clk
01:30:11]} {[%emt 00:01:32]} 4. d4 {[%clk 01:30:09]} {[%emt 00:00:32]} cxd4
{[%clk 01:30:26]} {[%emt 00:00:17]} 5. Nxd4 {[%clk 01:30:36]} {[%emt 00:00:03]}
Nf6 {[%clk 01:30:18]} {[%emt 00:00:37]} 6. Nxc6 {[%clk 01:29:47]} {[%emt
00:01:19]} bxc6 {[%clk 01:30:31]} {[%emt 00:00:17]} 7. Bg5 {[%clk 01:29:54]}
{[%emt 00:00:22]} Qa5+ {[%clk 01:27:47]} {[%emt 00:03:15]} 8. Qd2 {[%clk
01:28:15]} {[%emt 00:02:08]} Bb4 {[%clk 01:27:32]} {[%emt 00:00:47]} 9. Nc3
{[%clk 01:28:19]} {[%emt 00:00:25]} Nxe4 {[%clk 01:26:20]} {[%emt 00:01:42]} 10.
Qe3 {[%clk 01:26:33]} {[%emt 00:02:16]} Nxg5 {[%clk 01:25:41]} {[%emt
00:01:09]} 11. Be2 {[%clk 01:20:14]} {[%emt 00:06:48]} Bxc3+ {[%clk 01:24:43]}
{[%emt 00:01:29]} 12. bxc3 {[%clk 01:20:19]} {[%emt 00:00:24]} h6 {[%clk
01:25:00]} {[%emt 00:00:15]} 13. O-O {[%clk 01:19:45]} {[%emt 00:01:03]} Nh7
{[%clk 01:24:48]} {[%emt 00:00:42]} 14. Qg3 {[%clk 01:17:11]} {[%emt 00:03:02]}
O-O {[%clk 01:23:59]} {[%emt 00:01:21]} 15. Bd3 {[%clk 01:16:17]} {[%emt
00:01:22]} Qg5 {[%clk 01:23:11]} {[%emt 00:01:20]} 16. Qd6 {[%clk 01:13:28]}
{[%emt 00:03:17]} f5 {[%clk 01:20:56]} {[%emt 00:02:47]} 17. f4 {[%clk
01:13:22]} {[%emt 00:00:36]} Qg6 {[%clk 01:20:37]} {[%emt 00:00:48]} 18. c5
{[%clk 01:08:39]} {[%emt 00:05:14]} Nf6 {[%clk 01:18:14]} {[%emt 00:02:53]} 19.
Rab1 {[%clk 01:06:47]} {[%emt 00:02:23]} Ne4 {[%clk 01:17:30]} {[%emt
00:01:13]} 20. Bxe4 {[%clk 01:01:51]} {[%emt 00:05:26]} fxe4 {[%clk 01:17:40]}
{[%emt 00:00:20]} 21. f5 {[%clk 01:01:00]} {[%emt 00:01:21]} Qe8 {[%clk
01:16:10]} {[%emt 00:02:00]} 22. fxe6 {[%clk 01:00:09]} {[%emt 00:01:21]} Rxf1+
{[%clk 01:16:14]} {[%emt 00:00:27]} 23. Rxf1 {[%clk 01:00:05]} {[%emt
00:00:33]} dxe6 {[%clk 01:16:16]} {[%emt 00:00:28]} 24. Rd1 {[%clk 00:57:15]}
{[%emt 00:03:20]} e5 {[%clk 01:10:21]} {[%emt 00:06:24]} 25. Qd8 {[%clk
00:55:33]} {[%emt 00:02:13]} Qxd8 {[%clk 01:09:12]} {[%emt 00:01:40]} 26. Rxd8+
{[%clk 00:54:48]} {[%emt 00:01:15]} Kf7 {[%clk 01:09:30]} {[%emt 00:00:12]} 27.
Rd6 {[%clk 00:55:01]} {[%emt 00:00:17]} Be6 {[%clk 01:05:24]} {[%emt 00:04:35]}
28. Rxc6 {[%clk 00:54:02]} {[%emt 00:01:29]} Rc8 {[%clk 01:04:38]} {[%emt
00:01:16]} 29. Rxc8 {[%clk 00:52:33]} {[%emt 00:02:00]} Bxc8 {[%clk 01:05:02]}
{[%emt 00:00:06]} 30. Kf2 {[%clk 00:52:57]} {[%emt 00:00:06]} Bb7 {[%clk
01:05:07]} {[%emt 00:00:25]} 0-1